Cogmind - Beta 11 X10 @@@ ROGUE MODE // 2022.02.28 @ 03:01:09 Player: leiavoia Result: Destroyed by Y-54 Guardian with Flak Gun Performance ------------- Evolutions (3) 1500 Regions Visited (8) 1600 Robots Destroyed (112) 560 Value Destroyed (4448) 4448 Prototype IDs (6) 120 Alien Tech Used (0) 0 Bonus (1740) 1740 TOTAL SCORE: 9968 Bonus ------- High Alert Combat Kills 854 Follower Combat Kills 186 Entered Garrisons 200 Used RIF Installer 500 Cogmind --------- Core Integrity 0/700 Matter 189/300 Energy 275/275 System Corruption 32% Temperature Cool (6) Movement Rolling (160) Ox4 Location -7/Storage Parts ------- > --- POWER (1) -------- Deuterium Engine > --- PROPULSION (3) --- Armored Treads Armored Huge Wheel > --- UTILITY (6) ------ Huge Storage Unit Experimental Sensor Array Hardened Medium Armor Plating Improved Medium Armor Plating Relay Coupler [Sentry] (14) > --- WEAPON (3) ------- Lightning Gun Advanced Assault Cannon Remote Datajack > --- INVENTORY (25) --- Armored Wheel Armored Huge Wheel Armored Huge Wheel Improved Heat Sink Large Storage Unit High-capacity Battery (250) High-capacity Matter Pod (0) Improved Sensor Array Improved Terrain Scanner Advanced Targeting Computer Improved Light Armor Plating Improved Shield Generator Relay Coupler [NC] (31) Trap Extractor (0/4) Ion Cannon Flak Gun Heavy Machine Gun Heavy Machine Gun Heavy Missile Launcher Heavy Hammer Peak State ------------ > --- POWER ------------ Improved Deuterium Engine > --- PROPULSION ------- Armored Treads Armored Huge Wheel > --- UTILITY ---------- Huge Storage Unit Experimental Sensor Array Improved Terrain Scan Processor Improved Medium Armor Plating Improved Shield Generator Relay Coupler [Sentry] > --- WEAPON ----------- Lightning Gun Advanced Assault Cannon Remote Datajack > --- INVENTORY -------- Deuterium Engine Armored Wheel Armored Huge Wheel Armored Huge Wheel Improved Heat Sink Large Storage Unit High-capacity Battery High-capacity Matter Pod Improved Sensor Array Improved Terrain Scanner Advanced Targeting Computer Hardened Medium Armor Plating Improved Light Armor Plating Relay Coupler [NC] Relay Coupler [Swarmer] Relay Coupler [Sentry] Trap Extractor Ion Cannon Flak Gun Heavy Machine Gun Heavy Machine Gun Heavy Missile Launcher Heavy Hammer [Rating: 59] Favorites ----------- Power Improved Deuterium Engine Engine Improved Deuterium Engine Propulsion Armored Wheel Treads Light Treads Leg Aluminum Leg Wheel Armored Wheel Utility Huge Storage Unit Device Improved Heat Sink Storage Huge Storage Unit Processor Improved Target Analyzer Hackware Relay Coupler [Sentry] Protection Propulsion Shielding Weapon Heavy Machine Gun Energy Gun Heavy EM Pulse Gun Energy Cannon Advanced Beam Cannon Ballistic Gun Heavy Machine Gun Ballistic Cannon Advanced Assault Cannon Launcher Mini Grenade Launcher Special Weapon Remote Datajack Impact Weapon Heavy Hammer Special Melee Weapon Improved Datajack Build | -11 -10 -9 -9 -8 -7 -7 -7 -7 ------- Run | Scr Mat Mat Min Mat Fac Gar Fac Sto Slots Evolved 6 | . . 2 . 2 2 . . . Power . | . . . . . . . . . Propulsion 1 | . . 1 . . . . . . Utility 4 | . . 1 . 2 1 . . . Weapon 1 | . . . . . 1 . . . Parts Attached 166 | 1 16 16 4 23 9 51 40 6 Power 8 | . 1 1 . 2 . 3 . 1 Engine 8 | . 1 1 . 2 . 3 . 1 Core . | . . . . . . . . . Reactor . | . . . . . . . . . Propulsion 36 | . 5 3 2 3 1 14 7 1 Treads 12 | . 2 2 . 1 1 5 . 1 Leg 2 | . . . . . . 2 . . Wheel 22 | . 3 1 2 2 . 7 7 . Hover . | . . . . . . . . . Flight . | . . . . . . . . . Utility 64 | 1 2 6 1 9 6 15 20 4 Device 29 | 1 . 2 1 3 4 7 11 . Storage 3 | . 1 . . . . 2 . . Processor 3 | . . . . 1 1 . 1 . Hackware 8 | . . 1 . . . 2 2 3 Protection 21 | . 1 3 . 5 1 4 6 1 Artifact . | . . . . . . . . . Weapon 58 | . 8 6 1 9 2 19 13 . Energy Gun 6 | . . . . 2 . 2 2 . Energy Cannon 2 | . . . . 1 . 1 . . Ballistic Gun 23 | . 5 3 . 3 1 8 3 . Ballistic Cannon 1 | . . . . . . . 1 . Launcher 11 | . . 1 1 2 . 5 2 . Special Weapon 2 | . . . . . . . 2 . Impact Weapon 12 | . 3 2 . 1 1 2 3 . Slashing Weapon . | . . . . . . . . . Piercing Weapon . | . . . . . . . . . Special Melee Weapon 1 | . . . . . . 1 . . Unidentified Prototypes 4 | . . 1 . 1 . . 2 . Corrupted Parts 3 | . . . . . . 3 . . System Corruption 15 | . . . . . . 15 . . Parts Lost 33 | . . 1 1 6 3 20 1 1 Power 2 | . . . . . . 1 . 1 Propulsion 13 | . . 1 1 2 1 8 . . Utility 13 | . . . . 3 1 8 1 . Weapon 5 | . . . . 1 1 3 . . Highest Loss Streak 5 | . . 1 1 3 3 5 1 1 To Critical Strikes . | . . . . . . . . . Average Slot Usage (%) 94 | . 99 99 99 94 94 90 97 91 Engine 8 | . 14 11 11 9 7 6 7 7 Treads 7 | . 5 11 11 9 6 10 . 6 Leg 1 | . 2 . . . . 2 . . Wheel 15 | . 19 21 21 17 15 8 21 7 Device 12 | . 8 9 11 10 25 12 14 15 Storage 10 | . 14 11 11 9 7 11 7 7 Processor 1 | . . . . 6 2 2 . 6 Hackware 1 | . . . . . . . 6 5 Protection 10 | . 5 11 11 13 4 10 14 8 Energy Gun 3 | . . . . 5 . 5 5 7 Energy Cannon 2 | . . . . 1 7 4 . . Ballistic Gun 9 | . 23 15 11 6 6 7 6 . Launcher 2 | . . 2 11 1 . 2 2 . Impact Weapon 2 | . 4 3 . 2 7 . 3 . Naked Turns . | . . . . . . . . . Heaviest Build 142 | 12 92 99 99 137 123 142 134 119 Greatest Support 73 | 20 40 26 26 32 32 73 40 40 Greatest Overweight (x) 9 | . 4 4 6 7 3 9 3 4 Average Overweight (x) 3 | . 2 3 3 3 3 4 2 3 Largest Inventory Capacity 25 | 8 25 25 25 25 25 25 25 25 Average Capacity 24 | 8 19 25 25 25 25 25 25 25 Most Carried 25 | 8 25 25 25 25 25 25 25 25 Average Carried 23 | 6 16 24 24 23 24 24 24 24 Final Capacity 25 | 8 25 25 25 25 25 25 25 25 Final Carried 25 | 8 25 25 25 25 25 25 25 22 Class Distribution -------------------- 45% | Mutant 20% | Bothacker-Mutant 12% | Scavenger-Tank 8% | Scavenger-Mutant 5% | Tank 3% | Bothacker-Skirmisher Dominant Class ---------------- Mutant | -10/Materials Mutant | -9/Materials Mutant | -9/Mines Mutant | -8/Materials Mutant | -7/Factory Scavenger-Tank | -7/Garrison Bothacker-Mutant | -7/Factory Bothacker-Skirmisher | -7/Storage Resources | -11 -10 -9 -9 -8 -7 -7 -7 -7 ----------- Run | Scr Mat Mat Min Mat Fac Gar Fac Sto Matter Collected 3493 | 226 296 332 262 301 252 884 724 216 Remotely 252 | . . . . . 252 . . . Salvage Created 3924 | 119 375 565 47 640 194 1468 486 30 Parts 208 | 6 29 45 5 42 6 51 23 1 Haulers Intercepted 2 | . . 1 . 1 . . . . Recyclers Shooed 4 | . 1 2 . . 1 . . . Parts Field Recycled . | . . . . . . . . . Retrieved Matter . | . . . . . . . . . Parts Self-Destructed . | . . . . . . . . . Prevented . | . . . . . . . . . Kills | -11 -10 -9 -9 -8 -7 -7 -7 -7 ------- Run | Scr Mat Mat Min Mat Fac Gar Fac Sto Combat Hostiles Destroyed 94 | . 8 14 10 13 3 34 11 1 Guns 40 | . 8 7 1 9 1 10 3 1 Cannons 9 | . . . . . 2 7 . . AOE 45 | . . 7 9 4 . 17 8 . Classes Destroyed 16 | 2 4 4 1 2 . 1 2 . Worker 3 | . . 1 . 1 . . 1 . Builder 9 | . 1 4 . 4 . . . . Tunneler 1 | 1 . . . . . . . . Hauler 2 | . . 1 . 1 . . . . Recycler 5 | 1 2 1 . 1 . . . . Mechanic 1 | . . . . . . . 1 . Operator 2 | . . 1 . . . . 1 . Watcher 1 | . 1 . . . . . . . Swarmer 25 | . 3 3 4 3 . 11 . 1 Grunt 44 | . 5 9 . 7 1 13 9 . Brawler 3 | . . . . . . 3 . . Duelist 2 | . . . . 1 . 1 . . Sentry 10 | . . 2 . 1 2 5 . . Hunter 2 | . . . . 1 . 1 . . Programmer 2 | . . . . . . . 2 . Assembled 6 | . . . 6 . . . . . Best Kill Streak 8 | 2 6 8 6 8 3 5 4 1 Combat Bots Only 6 | . 3 5 6 4 3 5 4 1 Max Kills in Single Turn 4 | 1 1 4 2 4 1 3 2 1 Gunslinging . | . . . . . . . . . Exploded 3 | . . 3 2 2 . 3 2 . Melee . | . . . . . . . . . Uniques/NPCs Destroyed . | . . . . . . . . . Combat | -11 -10 -9 -9 -8 -7 -7 -7 -7 -------- Run | Scr Mat Mat Min Mat Fac Gar Fac Sto Damage Taken 7138 | . 216 335 227 1304 772 3475 593 216 Core 961 | . 73 64 17 106 84 524 82 11 Absorbed by Shields 191 | . . . . . . 76 111 4 Redirected to Shielding 161 | . 12 14 . 56 . 71 8 . Regen/Repaired (Parts) 66 | . . . . . . . 66 . Core Remaining (%) 82 | 100 70 . 79 80 . . . . Volleys Fired 278 | 4 17 33 9 42 15 116 30 12 Largest 3 | 2 2 2 2 2 2 3 3 2 Hottest 148 | 40 46 55 55 80 96 148 124 103 Shots Fired 541 | 8 34 61 18 75 30 248 53 14 Gun 372 | 8 34 54 9 68 15 150 31 3 Cannon 90 | . . . . . 15 72 . 3 Launcher 59 | . . 7 9 7 . 26 10 . Special 20 | . . . . . . . 12 8 Kinetic 262 | 8 34 54 9 40 15 84 15 3 Thermal 87 | . . . . . 15 72 . . Explosive 59 | . . 7 9 7 . 26 10 . Electromagnetic 113 | . . . . 28 . 66 16 3 Robot Hit Streak 17 | 2 6 10 5 11 13 17 5 4 Robot Miss Streak 4 | 1 3 3 3 4 3 4 3 1 Penetration Max . | . . . . . . . . . Secondary Targets 2 | . . . . 2 . . . . Max Gunslinging Chain 1 | . . . . 1 . . . . Shots Hit Robots 351 | 4 26 50 10 46 21 161 23 10 Core Hits 233 | 4 19 44 14 32 8 87 23 2 Critical Kills 2 | . 1 1 . . . . . . Critical Parts Destroyed 3 | . . . . . 1 2 . . Critical Strikes 6 | . 1 1 . . 1 3 . . Destroy 4 | . 1 1 . . . 2 . . Corrupt 1 | . . . . . . 1 . . Smash 1 | . . . . . 1 . . . Melee Attacks 46 | . 6 11 . 7 3 7 12 . Impact 45 | . 6 11 . 7 3 6 12 . Slashing . | . . . . . . . . . Piercing . | . . . . . . . . . Sneak Attacks 3 | . . 1 . . . . 2 . Combat Hostiles . | . . . . . . . . . Follow-up Attacks . | . . . . . . . . . Damage Inflicted 11075 | 42 421 1542 588 1507 431 5198 1265 81 Guns 4075 | 42 392 686 81 760 168 1716 179 51 Cannons 1222 | . . . . . 250 942 . 30 Explosions 4889 | . . 712 507 732 . 2019 919 . Melee 837 | . . 144 . . 13 521 159 . Ramming 52 | . 29 . . 15 . . 8 . Kinetic 3002 | 42 392 686 81 440 168 1076 87 30 Thermal 1412 | . . . . 156 250 1006 . . Explosive 4616 | . . 712 507 576 . 1955 866 . Electromagnetic 1156 | . . . . 320 . 640 145 51 Impact 837 | . . 144 . . 13 521 159 . Slashing . | . . . . . . . . . Piercing . | . . . . . . . . . Highest Corruption 32 | . . . . . . 29 32 32 Average Corruption 29 | . . . . . . 25 30 32 Corruption Purged . | . . . . . . . . . Corruption Blocked . | . . . . . . . . . Effects 86 | . . . . . . 18 55 13 Message Errors 21 | . . . . . . 8 9 4 Matter Fused 20 | . . . . . . 1 15 4 Heat Flow Errors 9 | . . . . . . 2 6 1 Energy Discharges 7 | . . . . . . 1 6 . Parts Rejected 4 | . . . . . . 2 2 . Data Loss (minor) 11 | . . . . . . . 9 2 Data Loss (major) 3 | . . . . . . 2 1 . Misfires 3 | . . . . . . . 3 . Alerts 1 | . . . . . . 1 . . Misdirections 3 | . . . . . . . 3 . Weapon Failures 4 | . . . . . . 1 1 2 Overload Shots . | . . . . . . . . . Overflow Damage 339 | . . 104 45 21 13 67 89 . Projectiles . | . . . . . . . . . Explosions 96 | . . . 45 21 . 30 . . Melee 243 | . . 104 . . 13 37 89 . Knockbacks 3 | . . 1 . . . . 1 1 Impact 2 | . . 1 . . . . 1 . Kinetic 1 | . . . . . . . . 1 Secondary . | . . . . . . . . . Self-Inflicted Damage 768 | . 29 . 111 229 . 261 138 . Shots 20 | . . . 4 5 . 9 2 . Rammed 4 | . . . . 3 . . 1 . Targets Rammed 4 | . . . . 3 . . 1 . Kicked . | . . . . . . . . . Crushed . | . . . . . . . . . Highest Temperature 358 | . 2 52 32 72 186 358 330 251 Average Temperature 89 | . 1 15 14 23 83 120 112 74 Received Heat Transfer 2361 | . 72 171 . 621 258 955 266 18 Effects 4 | . . . . . . 3 1 . Energy Bleed 1 | . . . . . . 1 . . Interference 3 | . . . . . . 2 1 . Siege Activations . | . . . . . . . . . Robots Corrupted . | . . . . . . . . . Combat Hostiles . | . . . . . . . . . Parts Fried 6 | . . . . . . 4 2 . Impact Corruptions 9 | . . 1 . . 1 3 4 . Robots Melted . | . . . . . . . . . Combat Hostiles . | . . . . . . . . . Parts Melted 5 | . . . . . 4 1 . . Heat Transferred 2346 | . . . . 100 444 1802 . . Parts Sabotaged . | . . . . . . . . . Parts Stolen . | . . . . . . . . . Parts Stripped . | . . . . . . . . . Power Chain Reactions 3 | . . . . 2 . 1 . . Missiles Intercepted . | . . . . . . . . . Alert | -11 -10 -9 -9 -8 -7 -7 -7 -7 ------- Run | Scr Mat Mat Min Mat Fac Gar Fac Sto Peak Influence 1377 | 10 213 224 123 469 218 1377 1020 540 Initial 722 | . 6 32 28 47 121 138 722 464 Average 543 | 8 67 119 60 241 139 859 824 482 Maximum Alert Level 4 | . 1 1 . 2 1 4 3 2 Low Security (%) 34 | 100 96 74 100 44 89 5 . . Level 1 11 | . 3 25 . 26 10 15 . . Level 2 12 | . . . . 28 . 11 11 100 Level 3 27 | . . . . . . 29 88 . Level 4 14 | . . . . . . 38 . . Level 5 . | . . . . . . . . . High Security . | . . . . . . . . . Max Security . | . . . . . . . . . Squads Dispatched 18 | . 2 1 . 3 4 . 5 3 Investigation 6 | . 2 1 . 1 1 . 1 . Extermination 2 | . . . . . . . 2 . Reinforcement 6 | . . . . 2 . . 2 2 Assault . | . . . . . . . . . Garrison 4 | . . . . . 3 . . 1 Intercept . | . . . . . . . . . Construction Impeded 1 | . . . . 1 . . . . Haulers Reinforced 1 | . . . . . . . . 1 Active Scanning Responses . | . . . . . . . . . Cargo Convoy Interrupts . | . . . . . . . . . Stealth | -11 -10 -9 -9 -8 -7 -7 -7 -7 --------- Run | Scr Mat Mat Min Mat Fac Gar Fac Sto Distress Signals 4 | . 1 2 . . . . . 1 Communications Jammed . | . . . . . . . . . Distress Signals . | . . . . . . . . . Times Spotted 142 | . 12 19 9 22 5 40 22 13 Peak Tracking Total 7 | . 4 6 4 4 3 6 7 4 Tactical Retreats 11 | . 1 . . 2 . 5 1 2 Traps | -11 -10 -9 -9 -8 -7 -7 -7 -7 ------- Run | Scr Mat Mat Min Mat Fac Gar Fac Sto Traps Triggered 14 | . 2 . . . . 10 2 . Indirectly . | . . . . . . . . . Trap Hack Attempts . | . . . . . . . . . Triggered . | . . . . . . . . . Disarmed . | . . . . . . . . . Reprogrammed . | . . . . . . . . . Reused . | . . . . . . . . . Traps Extracted . | . . . . . . . . . Installed . | . . . . . . . . . Triggered . | . . . . . . . . . Machines | -11 -10 -9 -9 -8 -7 -7 -7 -7 ---------- Run | Scr Mat Mat Min Mat Fac Gar Fac Sto Machines Disabled 17 | . . . . 2 1 4 10 . Max in Single Turn 3 | . . . . 1 1 1 3 . Garrison Relay 4 | . . . . . . 4 . . Machines Sabotaged . | . . . . . . . . . Garrisons Compromised . | . . . . . . . . . Overloaded Fab Kills . | . . . . . . . . . Hacking | -11 -10 -9 -9 -8 -7 -7 -7 -7 --------- Run | Scr Mat Mat Min Mat Fac Gar Fac Sto Machines Accessed 18 | . 4 3 . 2 3 . 4 2 Terminals 10 | . 2 3 . 1 1 . 2 1 Fabricators . | . . . . . . . . . Repair Stations 1 | . . . . . . . 1 . Recycling Units 6 | . 2 . . 1 1 . 1 1 Scanalyzers . | . . . . . . . . . Garrison Access 1 | . . . . . 1 . . . Total Hacks 39 | . 5 11 . 5 8 . 7 3 Successful 12 | . 2 3 . . 3 . 3 1 Failed 26 | . 3 7 . 5 5 . 4 2 Catastrophic 6 | . 1 . . 1 1 . 2 1 Database Lockouts 1 | . . 1 . . . . . . Manual 11 | . 1 4 . 2 4 . . . Terminals 24 | . 3 11 . 2 4 . 3 1 Fabricators . | . . . . . . . . . Repair Stations 2 | . . . . . . . 2 . Recycling Units 10 | . 2 . . 3 1 . 2 2 Scanalyzers . | . . . . . . . . . Garrison Access 3 | . . . . . 3 . . . Terminal Hacks 5 | . . 3 . . 1 . . 1 Robot Analysis 2 | . . 1 . . 1 . . . Prototype ID Bank 1 | . . 1 . . . . . . Open Door 1 | . . . . . . . . 1 Unreport Threat 1 | . . 1 . . . . . . Fabricator Hacks . | . . . . . . . . . Repair Station Hacks 2 | . . . . . . . 2 . Scan Component 1 | . . . . . . . 1 . Repair 1 | . . . . . . . 1 . Recycling Unit Hacks 4 | . 2 . . . 1 . 1 . Retrieve Components 4 | . 2 . . . 1 . 1 . Scanalyzer . | . . . . . . . . . Garrison Access Hacks 1 | . . . . . 1 . . . Unlock Access 1 | . . . . . 1 . . . Unauthorized Hacks . | . . . . . . . . . Terminals . | . . . . . . . . . Fabricators . | . . . . . . . . . Repair Stations . | . . . . . . . . . Recycling Units . | . . . . . . . . . Scanalyzers . | . . . . . . . . . Garrison Access . | . . . . . . . . . Data Cores Recovered . | . . . . . . . . . Used . | . . . . . . . . . Hacking Detections 16 | . 4 3 . 2 3 . 3 1 Full Trace Events 4 | . 1 1 . 1 1 . . . Feedback Events . | . . . . . . . . . Feedback Blocked . | . . . . . . . . . Robot Schematics Acquired . | . . . . . . . . . Robots Built . | . . . . . . . . . Authchips . | . . . . . . . . . Time . | . . . . . . . . . Total Robot Build Rating . | . . . . . . . . . Part Schematics Acquired . | . . . . . . . . . Parts Built . | . . . . . . . . . Authchips . | . . . . . . . . . Time . | . . . . . . . . . Total Part Build Rating . | . . . . . . . . . Parts Repaired 1 | . . . . . . . 1 . Time 16 | . . . . . . . 16 . Parts Recycled . | . . . . . . . . . Recycled Matter . | . . . . . . . . . Retrieved Matter . | . . . . . . . . . Retrieved Components 21 | . 15 . . . 3 . 3 . Parts Scanalyzed . | . . . . . . . . . Part Schematics Acquired . | . . . . . . . . . Parts Damaged . | . . . . . . . . . Bothacking | -11 -10 -9 -9 -8 -7 -7 -7 -7 ------------ Run | Scr Mat Mat Min Mat Fac Gar Fac Sto Used RIF Installer 1 | . . . . . . 1 . . Robots Hacked 10 | . . . . . . 1 5 4 Non-combat . | . . . . . . . . . Combat 10 | . . . . . . 1 5 4 Robot Hacks Applied 11 | . . . . . . 1 6 4 parse_system 1 | . . . . . . 1 . . disable_weapons 1 | . . . . . . . 1 . reboot_system 1 | . . . . . . . 1 . overwrite_iff 1 | . . . . . . . 1 . streamctrl_high 1 | . . . . . . . 1 . formatsys_high 6 | . . . . . . . 2 4 Relay Couplers Released 15 | . . . . . . 15 . . Machine Destruction 15 | . . . . . . 15 . . Attached 7 | . . . . . . 2 2 3 Fabnet Peak Effective % . | . . . . . . . . . Robots Rewired . | . . . . . . . . . Allies Hacked 1 | . . . . . . . 1 . Hacks Repelled . | . . . . . . . . . Allies | -11 -10 -9 -9 -8 -7 -7 -7 -7 -------- Run | Scr Mat Mat Min Mat Fac Gar Fac Sto Total Allies 8 | . . . . . . . 4 4 Largest Group 1 | . . . . . . . 1 1 Highest-Rated Group 32 | . . . . . . . 32 32 Highest-Rated Ally 32 | . . . . . . . 32 32 Total Orders . | . . . . . . . . . Ally Attacks 28 | . . . . . . . 14 14 Total Damage 735 | . . . . . . . 275 460 Kills 5 | . . . . . . . 2 3 Allies Corrupted . | . . . . . . . . . Allies Melted 1 | . . . . . . . 1 . Intel | -11 -10 -9 -9 -8 -7 -7 -7 -7 ------- Run | Scr Mat Mat Min Mat Fac Gar Fac Sto Robot Analysis Total 2 | . . 1 . . 1 . . . Derelict Logs Recovered . | . . . . . . . . . Drone Launches . | . . . . . . . . . Drone Recoveries . | . . . . . . . . . Exploration | -11 -10 -9 -9 -8 -7 -7 -7 -7 ------------- Run | Scr Mat Mat Min Mat Fac Gar Fac Sto Turns Passed 5150 | 34 499 566 359 403 188 1904 988 209 Spaces Moved 2354 | 17 274 286 142 155 80 741 554 105 Core . | . . . . . . . . . Treads 243 | . 49 . . . . 194 . . Legs 60 | 17 43 . . . . . . . Wheels 2051 | . 182 286 142 155 80 547 554 105 Hover . | . . . . . . . . . Flight . | . . . . . . . . . Fastest Speed 120 | 120 120 135 135 135 145 140 120 125 Average Speed 155 | 120 140 135 135 146 145 193 130 154 Slowest Speed 240 | 120 160 140 190 205 145 240 140 160 Overloaded Moves . | . . . . . . . . . Propulsion Burnouts . | . . . . . . . . . Robots Hopped . | . . . . . . . . . Cave-ins Triggered . | . . . . . . . . . Exploration Rate (%) 28 | 2 49 32 34 18 3 89 15 18 Regions Visited 8 Branch Regions 2 Pre-discovered Areas . | . . . . . . . . . Known Exits Taken 1 | . . . . . 1 . . . Unknown Exits Taken 6 | 1 1 1 1 1 . . 1 . Scrap Searched 1 | . . . 1 . . . . . Spaces Dug 29 | . 6 9 . 5 2 . 7 . Terrain Destroyed 461 | . 7 31 81 66 2 120 153 1 Melee 29 | . 6 9 . 5 2 . 7 . Projectile 6 | . . . . . . 4 1 1 AOE 425 | . . 22 81 61 . 116 145 . Terrain Rammed 1 | . 1 . . . . . . . Walls Destroyed 1 | . 1 . . . . . . . Machines Disabled . | . . . . . . . . . Actions | -11 -10 -9 -9 -8 -7 -7 -7 -7 --------- Run | Scr Mat Mat Min Mat Fac Gar Fac Sto Total 3315 | 23 346 398 293 252 118 990 755 140 Wait 251 | . 1 19 134 . . 12 73 12 Move 2347 | 16 273 285 141 155 79 740 553 105 Hop . | . . . . . . . . . Pick Up 99 | 2 21 16 2 10 7 26 14 1 Fast Attach 37 | 1 1 2 . 6 1 9 16 1 Attach 47 | . 2 4 2 7 6 21 3 2 Detach 6 | . 1 . . 1 . 1 3 . Swap 83 | . 13 10 2 10 2 22 21 3 Drop 94 | . 10 18 3 12 5 14 29 3 Fire 278 | 4 17 33 9 42 15 116 30 12 Melee 46 | . 6 11 . 7 3 7 12 . Ram 4 | . 1 . . 2 . . 1 . Kick . | . . . . . . . . . Crush . | . . . . . . . . . Escape Stasis 22 | . . . . . . 22 . . Rewire 1 | . . . . . . . . 1 Trap . | . . . . . . . . . Miscellaneous . | . . . . . . . . . Route ------- -11/Scrapyard -10/Materials -9/Materials -9/Mines -8/Materials -7/Factory -7/Garrison (discovered 3 exits: *Fac x3) -7/Factory -7/Storage History --------- Turn | Location | Event 13 | -11/Scrapyard | Discovered new exit (range 3) 35 | -11/Scrapyard | Entered Materials 308 | -10/Materials | Build established: Mutant 498 | -10/Materials | Discovered new exit (range 7) 534 | -10/Materials | Entered another Materials area 534 | -9/Materials | Evolved 2 slots: Propulsion x1, Utility x1 967 | -9/Materials | Discovered new exit (range 11) 1065 | -9/Materials | Central database locked down 1100 | -9/Materials | Entered Mines 1101 | -9/Mines | Assembled infested the area 1106 | -9/Mines | Met a Derelict bent on vengeance 1372 | -9/Mines | Found a damaged Exp. Sensor Array with a note attached 1375 | -9/Mines | Found Prototype Device 1442 | -9/Mines | Discovered new exit (range 9) 1459 | -9/Mines | Entered Materials 1459 | -8/Materials | Evolved 2 slots: Utility x2 1731 | -8/Materials | Lost 3 parts (2u1w) 1785 | -8/Materials | Discovered new exit (range 15) 1862 | -8/Materials | Entered Factory 1862 | -7/Factory | Evolved 2 slots: Utility x1, Weapon x1 1963 | -7/Factory | Identified exit to Garrison 2050 | -7/Factory | Entered Garrison 2080 | -7/Garrison | Lost 3 parts (1n1u1w) 2107 | -7/Garrison | Triggered checkpoint 2327 | -7/Garrison | Garrison Relay disabled 2463 | -7/Garrison | Triggered checkpoint 2579 | -7/Garrison | Triggered checkpoint 2632 | -7/Garrison | Triggered checkpoint 2741 | -7/Garrison | Lost 3 parts (1n1u1w) 2876 | -7/Garrison | Triggered checkpoint 2975 | -7/Garrison | Discovered new exit (range 10) 3138 | -7/Garrison | Lost 5 parts (1n3u1w) 3180 | -7/Garrison | Build established: Scavenger-Tank 3200 | -7/Garrison | Triggered checkpoint 3299 | -7/Garrison | Garrison Relay disabled 3432 | -7/Garrison | Discovered new exit (range 10) 3527 | -7/Garrison | Lost 3 parts (1n1u1w) 3563 | -7/Garrison | Core integrity fell below 50% 3572 | -7/Garrison | System corruption reached 10% 3637 | -7/Garrison | Lost 4 parts (1p3u) 3759 | -7/Garrison | Discovered new exit (range 10) 3782 | -7/Garrison | Installed Relay Interface Framework 3822 | -7/Garrison | Triggered checkpoint 3831 | -7/Garrison | Core integrity fell below 20% 3871 | -7/Garrison | Garrison Relay disabled 3954 | -7/Garrison | Entered Factory 4039 | -7/Factory | Identified Exp. Sensor Array 4290 | -7/Factory | Repaired Arm. Wheel 4421 | -7/Factory | System corruption reached 30% 4510 | -7/Factory | Build established: Bothacker-Mutant 4926 | -7/Factory | Discovered new exit (range 14) 4942 | -7/Factory | Entered Storage 4942 | -7/Storage | Accompanied by 1 ally 5131 | -7/Storage | Garrison activated, responded to threat 5151 | -7/Storage | Destroyed by Y-54 Guardian with Flak Gun Last Messages --------------- 05121_ Jacked Y-54 Guardian... >>formatsys_high Rerouting network defenses. Erasing system data. Installing primary routines, ETC: 6. 05122_ Acquired 34 matter. 05124_ Reactivated Guardian 4b. 05125_ H-55 Commando destroyed. 05129_ Discarded Imp. Terrain Scan Processor. 05130_ System corrupted: Matter fused (-7). 05131_ ALERT: Activating Garrison Access S001. 05141_ Jacked Y-54 Guardian... >>formatsys_high Rerouting network defenses. Erasing system data. Installing primary routines, ETC: 6. 05146_ Reactivated Guardian 4c. 05147_ Guardian 4c destroyed. 05149_ System corrupted: Component data lost. 05150_ Acquired 47 matter. Map ----- +----------------------------------------------------+ | ???????????????????????????????? ????????? | | ???????????????????????????????? ????????? | | ???????????????????????????????? ????????? | | ???????????????????????????????? ????????? | | ???????????????????????????????? ????????? | | ?????????????????????????????????% ????????? | | ?????????????????????????????????* #???????? | | ??????????????????????????#?##??? #??????#? | | ????????????????????????????#?? ? #???????? | | ?????????????????????????#?#??# ? #?#?????# | | ???????????????????#???#???#?#? #?#?????? | | ??????????????????#???#########/## ##??????? | | ????????????????????#?# ## ##?####?? | | ???????????????? #???/Y ## #???#??#? | | ?????????????? ?????### ##%##?????#? | | ???????????????? ???## ##=#?#?##??? | | ?????????????????????# u*[ ##=#####??#? | | ?????????????? ?? #?## =%" " ## #?###?#?# | | ???????????????####### u T" ##*#####?#?# | | ??????????????? ? """ ?#=##?#####? | | ????????????? ?" """ # # ####?##?#????? | | ???????????#?""" """ # ? * ##??###? | | ??????????????R """ + ![ %% ###??##? | | ?????????????""" # *[%! ? ##?#?#?# | | ?????????????""" ###;####### ###??#?? | | ????????????# ###@!###### ######## | | ?????????? ??? ###= #!!!!# # # | | ?????????########## #?### #? #""" # | | ???????????#????#?########T#!!!!# #"Y # | | ??????????????????###??#?######## #""" # | | ???????????????##?#????########## # =# | | ?????????????##???#?#?## # # # | | ????????????##???###???# """ + / # | | ????????????????#???#??# """ # # """ # | | ??????????????#?????#### """ # # """ # | | ????????????????????#### + # """ # | | ??????????????????????## """ # # """ # | | ???????????????????#?#?# """ # # """ # | | ???????????????????###?? """ # # # | | ????????????????????#??? ?# ######## | | ???????????????????????#######??# #??#?##? | | ?????????????????????#?#?#???#?#######?#??#? | | ???????????????????????#????#???###???????## | | ???????????????????????#?#????##????#??????# | | ????????????????????????????##??#???####???? | | ?????????????????????????????#??###?##?#??#? | | ???????????????????????#???????????????#???? | | ???????????????????????#????????#?#???#????? | | ????????????????????????????????#???#??????? | | | +----------------------------------------------------+ Best States ------------- Heat Dissipation 62 Energy Generation 16 Energy Capacity 790 Matter Stores 300 Matter Capacity 300 Sight Range 16 Robot Scan Range 20 Terrain Scan Range 16 Terrain Scan Density 110 Jamming Range 12 Armor Coverage 825 Resistance: KI 30 Propulsion Shielding 33 Evasion (%) 55 Target Analysis 6 Recoil Reduction 3 Offensive Hacking 10 Relay Coupler Types 2 Relay Coupler Value 52 Trap Extractor Capacity 4 Item Schematics ----------------- None Robot Schematics ------------------ None Fabricated ------------ Nothing Alien Tech Used ----------------- None Achievements -------------- None Challenges ------------ None Game ------ Seed AuthchipLaserSheargun Manual? 0 Play Time 01:21:49 Cumulative 579.5 hours Start 2022.02.28 @ 00:31:27 End 2022.02.28 @ 03:01:09 Sessions 3 Manual Loads 0 Difficulty Rogue Special Mode None Game No. 139 Rogue 108 Adventurer 31 Explorer 0 Win Type - Total 28 Types 23/0/2/3/0/0/0/0/0 Lore% 75 Gallery% 82 Achievement% 66 Wizard Run 0 Options --------- ASCII 0 Keyboard 0 Movement Arrows Keybinds 0 Fullscreen 1 Font 20/Terminus Map View 66x50 Tactical HUD 1 Map Filters NONE Filters NONE Steam 1 RUN: a19f417e-c0f9-4faf-9120-dd9c7fde3246